Cogmind - Beta 15 @@@ ROGUE MODE // 2025.09.04 @ 07:31:04 Player: Dosh Result: Destroyed by G-67 Veteran with Field Laser Performance ------------- Evolutions (7) 3500 Regions Visited (21) 4200 Robots Destroyed (331) 1655 Value Destroyed (17937) 17937 Prototype IDs (35) 700 Alien Tech Used (0) 0 Bonus (13320) 13320 TOTAL SCORE: 41312 Bonus ------- Triggered High Security 500 High Alert Combat Kills 4151 Follower Combat Kills 3812 Entered Garrisons 1400 Used RIF Installer 3500 Friendly Fire -43 Cogmind --------- Core Integrity 0/1300 Matter 261/300 Energy 81/100 System Corruption 33% Temperature Cool (9) Movement Core (50) Location -3/Garrison Parts ------- > --- POWER (3) -------- (None) > --- PROPULSION (6) --- (None) > --- UTILITY (8) ------ Relay Coupler [Duelist] (36) > --- WEAPON (4) ------- (None) > --- INVENTORY (5) ---- Advanced Remote Force Field Relay Coupler [Proto] (15) Enhanced Nova Cannon Peak State ------------ > --- POWER ------------ Light Particle Reactor Light Particle Reactor Meta Core > --- PROPULSION ------- Improved Heavy Treads Biometal Medium Treads Armored Heavy Treads > --- UTILITY ---------- Huge Storage Unit Experimental Core Analyzer Advanced Kinecellerator Advanced Weapon Cycler Layered Medium Armor Plating Advanced Force Field Advanced Hacking Suite Relay Coupler [Sentry] > --- WEAPON ----------- Heavy Linear Accelerator Remote Datajack > --- INVENTORY -------- Improved Heavy Treads Improved Heavy Treads Advanced Heat Sink Improved Cooling System Advanced Cooling System High-capacity Matter Pod Improved Heavy Armor Plating Relay Coupler [NC] Relay Coupler [NC] Relay Coupler [Swarmer] Relay Coupler [Sentry] Relay Coupler [Behemoth] Advanced Plasma Cannon Nova Cannon Heavy Linear Accelerator Gamma Bomb Array [Rating: 148] Favorites ----------- Power Compact Particle Reactor Engine Improved Deuterium Engine Power Core Meta Core Reactor Compact Particle Reactor Propulsion Armored Huge Wheel Treads Light Treads Leg Myomer Leg Wheel Armored Huge Wheel Hover Unit Improved Antigrav System Flight Unit Xenon Bombardment Thruster Utility Huge Storage Unit Device Improved Force Field Storage Huge Storage Unit Processor Advanced Targeting Computer Hackware Relay Coupler [Grunt] Protection Reactive Plating Weapon Improved Light Cannon Energy Gun Heavy Wave Gun Energy Cannon Nova Cannon Ballistic Gun Subdweller Machine Gun Ballistic Cannon Improved Light Cannon Launcher Heavy Missile Launcher Special Weapon Remote Datajack Slashing Weapon Great Axe Special Melee Weapon Datajack Build | -11 -10 -10 -8 -8 -7 -7 -7 -7 -7 -7 -6 -6 -5 -5 -5 -5 -5 -5 -4 -3 -3 ------- Run | Yrd Mat Sub Mat Gar Fac Was Fac Gar Fac Gar Fac Gar Fac Was Fac Gar Fac Gar Fac Res Gar Slots Evolved 14 | . . . 4 . 2 . . . . . 2 . 2 . . . . . 2 2 . Power 2 | . . . . . . . . . . . 1 . 1 . . . . . . . . Propulsion 4 | . . . 1 . 1 . . . . . . . . . . . . . 2 . . Utility 6 | . . . 3 . 1 . . . . . . . 1 . . . . . . 1 . Weapon 2 | . . . . . . . . . . . 1 . . . . . . . . 1 . Parts Attached 245 | 6 7 13 31 5 7 3 4 7 2 5 9 21 10 4 1 28 8 20 19 10 25 Power 27 | 1 1 2 2 2 1 . . 1 . 1 1 3 . . . 4 1 3 1 1 2 Engine 11 | 1 1 2 2 1 1 . . . . 1 . . . . . 1 . 1 . . . Core 5 | . . . . 1 . . . . . . 1 1 . . . . . . 1 . 1 Reactor 11 | . . . . . . . . 1 . . . 2 . . . 3 1 2 . 1 1 Propulsion 46 | 2 . 3 8 1 2 . . 1 1 1 . 5 . 1 . 5 . 5 5 . 6 Treads 31 | 2 . 1 4 . 2 . . 1 . 1 . 4 . 1 . 4 . 5 5 . 1 Leg 2 | . . . . . . . . . . . . . . . . 1 . . . . 1 Wheel 9 | . . 2 4 1 . . . . 1 . . 1 . . . . . . . . . Hover 2 | . . . . . . . . . . . . . . . . . . . . . 2 Flight 2 | . . . . . . . . . . . . . . . . . . . . . 2 Utility 109 | 1 2 3 12 1 2 2 4 3 1 3 4 11 9 3 1 11 5 8 9 6 8 Device 27 | . . . 5 . 2 1 . . 1 . 1 1 4 1 . 4 . 2 1 3 1 Storage 4 | 1 1 . 2 . . . . . . . . . . . . . . . . . . Processor 5 | . . . . . . . 1 . . . . 1 . . . . . . . 2 1 Hackware 54 | . . . . 1 . 1 2 2 . 3 2 8 5 1 1 6 5 4 6 1 6 Protection 19 | . 1 3 5 . . . 1 1 . . 1 1 . 1 . 1 . 2 2 . . Artifact . | . . . . . . . . . . . . . . . . . . . . . . Weapon 63 | 2 4 5 9 1 2 1 . 2 . . 4 2 1 . . 8 2 4 4 3 9 Energy Gun 4 | . . . . . . . . . . . . . . . . 2 . . . . 2 Energy Cannon 15 | . . . 1 . 2 . . . . . 1 2 . . . 1 1 2 3 . 2 Ballistic Gun 12 | 2 . 2 2 . . . . . . . 1 . . . . . . . . 1 4 Ballistic Cannon 14 | . 2 2 4 1 . . . 1 . . 1 . . . . 2 . . . 1 . Launcher 7 | . 1 . 1 . . . . 1 . . . . 1 . . 2 . 1 . . . Special Weapon 8 | . . . . . . 1 . . . . 1 . . . . 1 1 1 1 1 1 Impact Weapon . | . . . . . . . . . . . . . . . . . . . . . . Slashing Weapon 1 | . . . 1 . . . . . . . . . . . . . . . . . . Piercing Weapon . | . . . . . . . . . . . . . . . . . . . . . . Special Melee Weapon 2 | . 1 1 . . . . . . . . . . . . . . . . . . . Unidentified Prototypes 11 | . . . 2 . . . . . . . 1 . . . . 8 . . . . . Parts Lost 104 | . . 13 4 4 . . . 1 . 3 1 . 4 . 2 16 1 5 12 6 32 Power 19 | . . 2 . 2 . . . 1 . 1 . . . . . 4 1 2 1 1 4 Propulsion 26 | . . 3 2 . . . . . . 1 . . . . . 5 . 2 4 2 7 Utility 35 | . . 3 2 2 . . . . . 1 1 . 4 . 1 3 . . 5 2 11 Weapon 24 | . . 5 . . . . . . . . . . . . 1 4 . 1 2 1 10 Highest Loss Streak 16 | . . 7 1 3 . . . 1 . 2 1 . 2 . 2 10 1 3 6 3 16 To Critical Strikes 3 | . . 1 . . . . . . . . . . . . 1 . . . 1 . . Average Backups 18 | . 9 12 20 22 23 23 22 22 21 20 20 21 17 15 16 20 22 22 22 3 4 Power . | . . . . . . 1 1 . . . . 1 . . . 1 1 1 1 . . Propulsion 2 | . 1 3 4 6 4 4 4 3 3 2 2 1 2 3 4 2 3 1 . . . Utility 10 | . 3 4 9 10 13 12 11 13 13 12 13 14 10 8 8 10 12 14 15 2 2 Weapon 3 | . 3 2 3 3 3 4 4 2 2 1 2 3 3 3 2 4 4 4 4 . . Tool/Special . | . . . . . . . . . . . . . . . . . . . . . . Unused Backups 55 | . 1 . 6 2 1 1 . 4 . 3 . 11 . . . 7 1 9 4 . 5 Power 6 | . 1 . 1 . . . . . . . . 1 . . . 1 . 2 . . . Propulsion 6 | . . . 3 . . 1 . . . . . 2 . . . . . . . . . Utility 35 | . . . 1 2 1 . . 4 . 3 . 7 . . . 3 1 6 4 . 3 Weapon 7 | . . . 1 . . . . . . . . 1 . . . 3 . . . . 2 Tool/Special 1 | . . . . . . . . . . . . . . . . . . 1 . . . Average Slot Usage (%) 81 | . 99 98 87 89 91 92 92 88 76 75 79 75 76 75 63 71 74 81 72 50 47 Engine 4 | . 14 13 8 6 6 7 7 2 . 2 6 3 . . . . . 1 . 3 . Core 1 | . . . . 2 . . . . . . 6 4 5 5 5 1 . . . 4 2 Reactor 6 | . . . . . . . . 4 7 4 . 3 10 10 10 13 17 15 13 . 2 Treads 13 | . 28 26 3 9 15 15 15 15 15 14 13 9 15 15 15 11 11 12 13 12 1 Wheel 3 | . . . 14 9 7 7 7 7 7 7 6 4 . . . . . . . . . Device 6 | . . . 7 9 18 18 20 8 7 4 . . 8 12 9 10 8 13 7 4 2 Storage 7 | . 14 14 9 9 7 7 7 7 7 7 6 5 5 5 5 5 5 5 4 . . Processor 2 | . . . . . . . . 7 7 7 6 11 5 . . . . . . 6 3 Hackware 5 | . . . . 8 7 11 13 11 7 9 14 9 11 5 . 5 6 6 13 3 11 Protection 9 | . 13 13 25 17 10 7 3 6 7 7 5 5 4 5 5 4 5 5 4 4 . Energy Gun 1 | . . . . . . . . . . . . . . . . 7 9 1 . . . Energy Cannon 2 | . . . . . 8 12 13 11 . . . . . 9 . . 2 10 9 2 . Ballistic Cannon 8 | . 27 26 14 15 6 . . . 7 6 6 5 5 . 4 1 . . . 1 1 Special Weapon 2 | . . . . . . 2 1 1 . . 5 5 4 5 5 4 4 4 2 . 3 Peak Build Rating 148 | 6 12 17 45 44 52 55 55 70 72 72 73 127 148 134 143 143 139 139 144 73 79 Average Rating 78 | 4 11 13 37 43 51 51 53 56 71 68 70 95 135 127 137 129 135 128 124 48 55 On Entrance 70 | . 6 12 12 42 44 52 55 52 70 72 65 72 124 130 131 137 138 133 128 18 61 Naked Turns 5 | . . . . . . . . . . . . . . . . . . . 5 . . Heaviest Build 206 | 12 42 42 132 122 128 122 122 140 143 143 145 153 183 185 206 206 195 204 193 63 54 Greatest Support 200 | 40 40 40 52 28 28 28 28 28 28 28 28 170 170 170 165 180 150 150 200 69 51 Greatest Overweight (x) 17 | . 1 1 4 4 4 4 4 4 5 5 5 5 1 1 1 2 1 1 1 2 17 Average Overweight (x) 2 | . . . 2 4 4 4 3 3 5 4 4 3 . . 1 . 1 1 . . . Largest Inventory Capacity 25 | 8 15 15 25 25 25 25 25 25 25 25 25 25 25 25 25 25 25 25 25 5 5 Average Capacity 22 | 6 13 15 23 25 25 25 25 25 25 25 25 25 25 25 25 25 25 25 24 5 5 Most Carried 25 | 1 13 15 25 25 25 25 25 25 25 25 25 25 24 25 25 25 25 25 25 5 5 Average Carried 20 | . 9 13 22 24 24 24 24 24 24 24 24 24 20 21 21 21 23 23 22 3 4 Final Capacity 25 | 8 15 15 25 25 25 25 25 25 25 25 25 25 25 25 25 25 25 25 5 5 5 Final Carried 25 | 1 13 8 24 25 25 25 24 25 25 25 25 25 18 25 21 25 23 25 5 4 3 Class Distribution -------------------- 30% | Mutant 26% | Botlord-Tank 14% | Bothacker-Mutant 11% | Bothacker-Tank 6% | Botlord-Gunner 5% | Tank 3% | Botlord-Mutant Dominant Class ---------------- Mutant | -10/Materials Mutant | -10/Subcaves Mutant | -8/Materials Mutant | -8/Garrison Bothacker-Mutant | -7/Factory Bothacker-Mutant | -7/Waste Bothacker-Mutant | -7/Factory Bothacker-Mutant | -7/Garrison Bothacker-Mutant | -7/Factory Botlord-Mutant | -7/Garrison Botlord-Gunner | -6/Factory Botlord-Tank | -6/Garrison Bothacker-Tank | -5/Factory Tank | -5/Waste Tank | -5/Factory Botlord-Tank | -5/Garrison Botlord-Tank | -5/Factory Botlord-Tank | -5/Garrison Botlord-Tank | -4/Factory Scavenger-Mutant | -3/Research Botlord-Gunner | -3/Garrison Resources | -11 -10 -10 -8 -8 -7 -7 -7 -7 -7 -7 -6 -6 -5 -5 -5 -5 -5 -5 -4 -3 -3 ----------- Run | Yrd Mat Sub Mat Gar Fac Was Fac Gar Fac Gar Fac Gar Fac Was Fac Gar Fac Gar Fac Res Gar Matter Collected 13908 | 224 433 581 1819 436 227 365 54 401 390 868 754 1298 1254 257 615 1503 533 749 479 171 497 Remotely . | . . . . . . . . . . . . . . . . . . . . . . Salvage Created 13070 | . 464 319 1652 195 227 526 . 670 4 416 461 1262 1002 627 376 904 1023 1676 525 214 527 Parts 547 | . 26 15 84 20 6 6 . 33 . 23 11 55 55 7 25 26 40 71 14 9 21 Haulers Intercepted 10 | . 2 . 5 . . . . . . . 2 . . . . 1 . . . . . Recyclers Shooed 5 | . . . 4 . . . . . . . . . 1 . . . . . . . . Parts Field Recycled . | . . . . . . . . . . . . . . . . . . . . . . Retrieved Matter . | . . . . . . . . . . . . . . . . . . . . . . Parts Self-Destructed 20 | . . 20 . . . . . . . . . . . . . . . . . . . Prevented . | . . . . . . . . . . . . . . . . . . . . . . Kills | -11 -10 -10 -8 -8 -7 -7 -7 -7 -7 -7 -6 -6 -5 -5 -5 -5 -5 -5 -4 -3 -3 ------- Run | Yrd Mat Sub Mat Gar Fac Was Fac Gar Fac Gar Fac Gar Fac Was Fac Gar Fac Gar Fac Res Gar Combat Hostiles Destroyed 285 | . 13 13 35 15 1 2 . 20 . 17 10 24 24 2 12 26 19 30 12 3 7 Melee 4 | . . . . . . . . . . . . . . . 1 1 . 1 1 . . Guns 28 | . . 1 3 . . . . . . . . . . . . 4 13 2 . . 5 Cannons 164 | . 8 7 26 8 1 1 . 11 . 14 9 16 18 1 6 8 4 18 4 3 1 AOE 80 | . 5 5 6 7 . . . 9 . 3 1 7 5 . 5 13 2 5 7 . . Classes Destroyed 24 | . 7 3 2 2 . 1 . 1 . 1 . 1 5 . . 1 . . . . . Worker 6 | . 1 . 4 . . . . . . . . . 1 . . . . . . . . Builder 3 | . . . . . . . . . . . . . 3 . . . . . . . . Tunneler 2 | . . . . . . . . . . . . . 1 . . . . . 1 . . Hauler 10 | . 2 . 5 . . . . . . . 2 . . . . 1 . . . . . Recycler 11 | . 1 . 6 . 2 . . . . . 1 . 1 . . . . . . . . Operator 4 | . 1 . 1 . . . . . . . . . . . 1 . 1 . . . . Turret 2 | . . 2 . . . . . . . . . . . . . . . . . . . Watcher 6 | . 2 . 3 . . . . . . . . . . . . . . . 1 . . Swarmer 76 | . 3 . 10 7 . . . 11 . 3 . 8 4 . 8 1 1 10 6 . 4 Cutter 4 | . . . . . . . . . . 3 . . . . . . . 1 . . . Saboteur 2 | . . . . . . . . . . . . . . . . 1 1 . . . . Grunt 95 | . 10 4 14 . . . . 6 . 8 6 9 11 . 2 9 8 8 . . . Brawler 4 | . . . . . . . . 1 . . . . 1 . . . 1 . 1 . . Duelist 11 | . . . 1 . . . . 1 . . . 1 . . . 1 2 1 4 . . Protector 1 | . . . . . . . . . . . . . 1 . . . . . . . . Sentry 30 | . . 1 9 3 . . . 1 . 1 1 5 . . 2 4 1 . . 1 1 Demolisher 2 | . . . . . . . . . . . . . 1 . . . . . 1 . . Specialist 2 | . . . . . . . . . . . . . 1 . . 1 . . . . . Hunter 17 | . . . . 2 . . . . . . 2 . 2 . . 6 3 1 . . 1 Programmer 23 | . . . . 3 1 . . . . 2 1 . 2 . . 1 2 7 . 2 2 Heavy 2 | . . . 1 . . . . . . . . . 1 . . . . . . . . Behemoth 6 | . . . . . . . . . . . . 2 . . . 2 . 2 . . . Compactor 4 | . . . . . . 2 . . . . . . . 2 . . . . . . . Subdweller 8 | . . 8 . . . . . . . . . . . . . . . . . . . Best Kill Streak 11 | . 7 2 4 6 2 1 . 5 . 7 2 4 9 1 4 11 5 5 5 2 3 Combat Bots Only 11 | . 5 2 4 6 1 1 . 5 . 7 2 4 7 1 4 11 4 5 4 2 3 Max Kills in Single Turn 7 | . 4 2 3 4 1 1 . 3 . 3 1 2 3 1 4 7 2 3 4 1 1 Gunslinging 1 | . . . . . . . . . . . . . . . . 1 . . . . . Exploded 7 | . 3 2 3 4 . . . 3 . 3 1 2 3 . 4 7 2 3 3 . . Melee 1 | . . . . . . . . . . . . . . . 1 1 . 1 1 . . Uniques/NPCs Destroyed . | . . . . . . . . . . . . . . . . . . . . . . Combat | -11 -10 -10 -8 -8 -7 -7 -7 -7 -7 -7 -6 -6 -5 -5 -5 -5 -5 -5 -4 -3 -3 -------- Run | Yrd Mat Sub Mat Gar Fac Was Fac Gar Fac Gar Fac Gar Fac Was Fac Gar Fac Gar Fac Res Gar Hostile Shots Fired 2472 | . 39 176 200 91 8 . 10 55 6 146 81 145 176 . 72 308 160 274 202 29 294 Missed 682 | . 14 63 49 22 . . 3 22 2 46 13 63 39 . 21 79 40 56 66 6 78 Hits 1790 | . 25 113 151 69 8 . 7 33 4 100 68 82 137 . 51 229 120 218 136 23 216 Melee 40 | . . . . . . . . 2 . 3 . . 5 . 5 . 5 4 13 3 . Projectile 1750 | . 25 113 151 69 8 . 7 31 4 97 68 82 132 . 46 229 115 214 123 20 216 AOE 3 | . . . . . . . . . . 1 . . . . . . . 1 1 . . Critical Strikes 78 | . . 2 7 4 . . . 1 . 4 3 1 7 . 1 3 10 9 9 4 13 Part Disruptions 7 | . . . . 1 . . . . . . 1 . 1 . . 1 1 . . . 2 Damage Taken 28069 | . 307 1709 1436 892 88 . 100 633 111 1248 1223 1387 1800 170 804 3968 1340 3393 3067 606 3787 Core 3231 | . 47 185 108 74 11 . . 59 . 99 125 83 79 170 85 298 89 194 218 24 1283 Absorbed by Shields 5964 | . . . 435 . 33 . 4 19 . . . 19 1277 . 418 355 1079 1141 508 . 676 Reduced by Siege Mode 226 | . . . . . . . . . . . . 40 26 . . 74 18 68 . . . Ignored by Resistances 333 | . . . 232 101 . . . . . . . . . . . . . . . . . Regen/Repaired (Parts) 2277 | . . . 80 . . . . . . . 704 750 237 . . . . . 506 . . Core Remaining (%) 58 | 100 . 7 . 66 . . . . . 75 . 75 . . . . . 8 81 . . Volleys Fired 1251 | . 34 79 118 36 8 52 6 51 4 64 57 129 102 64 37 79 92 124 44 16 55 Largest 3 | . 2 2 2 2 2 2 1 2 1 1 2 1 1 2 1 2 3 3 3 1 3 Hottest 314 | . 66 66 90 80 145 145 5 145 70 70 155 113 80 211 80 176 314 314 286 113 186 Shots Fired 1820 | . 66 144 230 64 16 83 6 69 6 63 58 129 102 117 38 92 156 232 51 16 82 Gun 264 | . . 11 33 . . . . . . . . . . . . 41 95 32 . . 52 Cannon 1331 | . 64 131 194 60 16 77 . 51 6 55 46 104 76 110 35 31 36 183 16 16 24 Launcher 52 | . 2 2 3 4 . . . 11 . 2 . 11 3 . 1 7 . 2 4 . . Special 173 | . . . . . . 6 6 7 . 6 12 14 23 7 2 13 25 15 31 . 6 Kinetic 855 | . 64 142 210 60 . . . . 6 55 45 77 76 . 35 22 . . . 2 61 Thermal 730 | . . . 17 . 16 77 . 51 . . 1 27 . 110 . 50 131 211 16 14 9 Explosive 23 | . 2 2 3 4 . . . 9 . . . . . . . 3 . . . . . Electromagnetic 39 | . . . . . . . . 2 . 2 . 11 3 . 1 4 . 6 4 . 6 Robot Hit Streak 28 | . 9 9 14 6 5 11 5 9 1 7 16 28 18 20 10 19 6 20 11 7 8 Robot Miss Streak 9 | . 4 4 9 4 3 2 1 1 3 5 3 3 4 4 7 3 3 6 3 1 3 Penetration Max 1 | . . . . . . . . . . . 1 . . . . . . . . . 1 Secondary Targets 1 | . . . . . . . . . . . . . . . . 1 . . . . . Max Gunslinging Chain 1 | . . . . . . . . . . . . . . . . 1 . . . . . Shots Hit Robots 1059 | . 40 86 135 34 8 59 5 36 1 27 45 86 61 88 15 58 82 105 34 13 41 Core Hits 485 | . 25 25 81 17 3 5 . 28 . 15 9 41 35 6 13 59 32 43 23 5 20 Critical Kills 7 | . . . . . . 1 . . . . . . . 1 . . . 3 . . 2 Critical Parts Destroyed . | . . . . . . . . . . . . . . . . . . . . . . Critical Strikes 48 | . 3 4 7 4 . 1 . . . 2 2 4 4 1 2 5 1 4 . . 4 Burn 2 | . . . . . . . . . . . . . . . . . 1 1 . . . Meltdown 5 | . . . . . . 1 . . . . . . . 1 . . . 3 . . . Destroy 2 | . . . . . . . . . . . . . . . . . . . . . 2 Blast 38 | . 3 4 6 4 . . . . . 2 2 4 4 . 2 5 . . . . 2 Sever 1 | . . . 1 . . . . . . . . . . . . . . . . . . Melee Attacks 21 | . . 8 8 5 . . . . . . . . . . . . . . . . . Impact . | . . . . . . . . . . . . . . . . . . . . . . Slashing 13 | . . . 8 5 . . . . . . . . . . . . . . . . . Piercing 8 | . . 8 . . . . . . . . . . . . . . . . . . . Sneak Attacks 8 | . . 4 4 . . . . . . . . . . . . . . . . . . Combat Hostiles 4 | . . 4 . . . . . . . . . . . . . . . . . . . Follow-up Attacks . | . . . . . . . . . . . . . . . . . . . . . . Damage Inflicted 46900 | 1 1195 1867 4688 1499 248 1632 . 1548 113 2156 2774 4998 4476 3543 1203 4535 2575 4554 1324 562 1409 Guns 3993 | . . 190 438 . . . . . . . . . . . . 598 1476 557 . . 734 Cannons 34553 | . 834 1380 3138 952 228 1632 . 649 113 2075 2774 4526 4009 3543 1009 1707 689 3655 429 562 649 Explosions 7559 | . 355 279 621 547 . . . 896 . 81 . 472 404 . 173 2148 403 339 841 . . Melee 456 | . . 18 438 . . . . . . . . . . . . . . . . . . Ramming 339 | 1 6 . 53 . 20 . . 3 . . . . 63 . 21 82 7 3 54 . 26 Kinetic 22971 | . 834 1663 3365 952 . . . . 113 2075 2744 3456 4009 . 1009 1575 . . . 36 1140 Thermal 15921 | . . . 211 . 228 1632 . 649 . . 30 1142 76 3543 . 730 2165 4103 716 526 170 Explosive 4235 | . 355 186 621 547 . . . 695 . . . . . . 44 1384 403 . . . . Electromagnetic 2978 | . . . . . . . . 201 . 81 . 400 328 . 129 764 . 448 554 . 73 Impact . | . . . . . . . . . . . . . . . . . . . . . . Slashing 438 | . . . 438 . . . . . . . . . . . . . . . . . . Piercing 18 | . . 18 . . . . . . . . . . . . . . . . . . . Highest Corruption 44 | . 1 1 . 5 2 20 20 20 20 24 . . 8 30 30 32 36 44 8 6 33 Average Corruption 22 | . 1 1 . 4 1 13 20 20 20 23 . . 6 23 30 31 33 41 3 4 19 Corruption Purged . | . . . . . . . . . . . . . . . . . . . . . . Corruption Blocked . | . . . . . . . . . . . . . . . . . . . . . . Effects 700 | . 6 18 . 4 2 17 2 49 31 58 . . 16 24 49 125 96 173 3 4 23 Message Errors 152 | . 1 3 . . 1 1 . 11 11 19 . . 1 6 10 30 14 40 1 . 3 Matter Fused 159 | . 3 7 . 3 1 4 1 15 7 12 . . 3 2 9 34 19 34 . . 5 Heat Flow Errors 82 | . . 1 . . . 1 . 5 2 10 . . 2 3 8 10 14 23 . 1 2 Energy Discharges 62 | . . 2 . . . . 1 8 4 . . . 3 1 6 10 8 15 2 . 2 Parts Rejected 11 | . . . . . . 2 . . . 1 . . 1 3 . . 2 1 . 1 . Parts Fused 5 | . 1 . . . . . . . . . . . . . . . 3 1 . . . Data Loss (minor) 69 | . 1 1 . . . 1 . 2 3 6 . . 3 3 4 17 6 18 . 1 3 Data Loss (major) 28 | . . 1 . . . 1 . 1 1 2 . . 1 1 4 3 8 3 . 1 1 Misfires 32 | . . 2 . . . 2 . 2 2 3 . . 1 . 4 4 4 6 . . 2 Alerts 18 | . . . . 1 . . . . 1 1 . . . . 1 2 3 9 . . . Misdirections 8 | . . . . . . . . . . . . . . 1 . 3 2 1 . . 1 Weapon Failures 74 | . . 1 . . . 5 . 5 . 4 . . 1 4 3 12 13 22 . . 4 Overload Shots . | . . . . . . . . . . . . . . . . . . . . . . Overflow Damage 2352 | . 12 9 102 104 3 . . 42 58 381 419 120 483 5 180 56 92 52 174 9 51 Projectiles 1928 | . 12 9 34 41 3 . . 34 58 381 419 82 483 5 180 51 24 52 . 9 51 Explosions 379 | . . . 28 63 . . . 8 . . . 38 . . . . 68 . 174 . . Melee 45 | . . . 40 . . . . . . . . . . . . 5 . . . . . Knockbacks 116 | . 5 21 29 12 . . . . . 9 12 3 14 . . 6 . . 1 . 4 Impact 4 | . . . . . . . . . . . . . 1 . . 2 . . 1 . . Kinetic 99 | . 4 21 26 9 . . . . . 7 10 3 12 . . 4 . . . . 3 Secondary 13 | . 1 . 3 3 . . . . . 2 2 . 1 . . . . . . . 1 Self-Inflicted Damage 1341 | . . 109 69 99 4 . . 124 . 15 . 11 . . 176 185 62 62 407 . 18 Shots 42 | . . 3 1 3 . . . 5 . 1 . 2 . . 2 7 1 5 12 . . Rammed 43 | 1 2 . 5 . 2 . . 1 . . . . 5 . . 16 2 . 5 . 4 Targets Rammed 48 | 1 2 . 5 . 2 . . 1 . . . . 6 . 1 17 2 1 6 . 4 Kicked . | . . . . . . . . . . . . . . . . . . . . . . Crushed 5 | . . . . . . . . . . . . . 1 . 1 1 . 1 1 . . Highest Temperature 680 | . 147 127 402 6 . 350 . 241 220 314 184 320 386 630 414 217 455 608 680 432 353 Average Temperature 104 | . 47 45 103 4 . 102 . 78 71 86 62 74 133 173 119 53 111 90 147 193 139 Received Heat Transfer 4690 | . 141 393 614 36 . . 60 81 . 291 207 282 292 . 37 418 171 1112 478 27 50 Effects 54 | . . . 8 . . . . . . 3 . . 5 8 5 . 4 9 8 2 2 Shutdowns 23 | . . . 4 . . . . . . . . . 2 2 2 . 1 5 6 1 . Energy Bleed 11 | . . . 4 . . . . . . . . . . . 2 . 2 2 1 . . Interference 11 | . . . . . . . . . . 3 . . 3 3 . . . . . . 2 Matter Decay 5 | . . . . . . . . . . . . . . 1 1 . 1 1 1 . . Short Circuit 1 | . . . . . . . . . . . . . . 1 . . . . . . . Damage (minor) 2 | . . . . . . . . . . . . . . . . . . 1 . 1 . Damage (core) 1 | . . . . . . . . . . . . . . 1 . . . . . . . Siege Activations 12 | . . . . . . . . . . . . 3 1 . . 2 1 5 . . . Total Turns 310 | . . . . . . . . . . . . 69 44 . . 39 26 132 . . . Longest Duration 59 | . . . . . . . . . . . . 47 44 . . 29 26 59 . . . Martial Activations . | . . . . . . . . . . . . . . . . . . . . . . Shielding Activations . | . . . . . . . . . . . . . . . . . . . . . . Robots Disrupted 1 | . . . . . . . . . . . . . 1 . . . . . . . . Combat Hostiles 1 | . . . . . . . . . . . . . 1 . . . . . . . . Robots Corrupted 4 | . . . 1 . . . . . . . . 1 1 . . . . 1 . . . Combat Hostiles 3 | . . . . . . . . . . . . 1 1 . . . . 1 . . . Parts Fried 12 | . . . 3 . . . . 1 . . . . 3 . . . . 3 2 . . Impact Corruptions 5 | . . . 1 . . . . . . 2 . . . . . 2 . . . . . Robots Melted 5 | . . . . . . 1 . . . . . . . 1 . . . 3 . . . Combat Hostiles 5 | . . . . . . 1 . . . . . . . 1 . . . 3 . . . Parts Melted 46 | . . 2 2 . 2 2 . . . . . 1 . 1 . 3 11 18 . 1 3 Heat Transferred 18598 | . . . 444 . 361 2723 . 1146 . . 37 1049 50 4263 . 901 2553 3848 707 444 72 Parts Sabotaged . | . . . . . . . . . . . . . . . . . . . . . . Parts Stolen . | . . . . . . . . . . . . . . . . . . . . . . Parts Stripped . | . . . . . . . . . . . . . . . . . . . . . . Power Chain Reactions 5 | . . . . . . . . 1 . . . 2 1 . . . . . 1 . . Alert | -11 -10 -10 -8 -8 -7 -7 -7 -7 -7 -7 -6 -6 -5 -5 -5 -5 -5 -5 -4 -3 -3 ------- Run | Yrd Mat Sub Mat Gar Fac Was Fac Gar Fac Gar Fac Gar Fac Was Fac Gar Fac Gar Fac Res Gar Maximum Alert Level 5 | . . . 2 3 2 . . 3 2 3 2 4 4 1 1 5 3 5 5 4 3 Low Security (%) 22 | 100 100 . 41 . 26 100 100 8 . 13 82 3 . . 50 . . . . . . Level 1 16 | . . . 38 7 60 . . 22 68 10 3 4 . 100 49 18 . . . . . Level 2 13 | . . . 20 45 12 . . 21 31 22 14 21 5 . . 8 18 11 . . 3 Level 3 28 | . . . . 46 . . . 47 . 54 . 26 87 . . 44 81 17 . 88 96 Level 4 11 | . . . . . . . . . . . . 44 6 . . 23 . 27 37 11 . Level 5 5 | . . . . . . . . . . . . . . . . 5 . 43 2 . . High Security 1 | . . . . . . . . . . . . . . . . . . . 60 . . Max Security . | . . . . . . . . . . . . . . . . . . . . . . Peak Influence 2779 | . 146 . 570 845 443 50 . 959 503 868 455 1503 1148 377 343 1676 968 2779 2031 1115 832 Initial 1458 | . . . 24 369 443 50 . . 503 177 455 98 788 377 158 206 879 527 1458 1100 726 Average 692 | . 54 . 227 641 273 9 . 633 371 586 165 939 895 304 206 922 795 1540 1680 1050 780 Influence Increases 14971 | . 462 265 1200 536 42 1 . 1079 161 861 380 1465 1723 20 537 1670 908 2362 888 99 312 Destroy 0b10 Robot/C 6820 | . 260 140 700 320 20 . . 520 80 520 220 600 720 . 240 680 480 740 380 60 140 Destroy 0b10 Robot/NC 325 | . 35 . 95 . 10 . . 5 . . 15 20 85 . 5 15 5 5 20 . 10 Destroy Leader 832 | . 58 20 196 10 10 . . 40 10 40 34 30 102 . 30 50 70 50 42 20 20 Allied During Kill 709 | . . . . 1 . . . 46 33 48 6 109 215 . . 50 21 122 57 . 1 Trap Triggered on 0b10 10 | . 10 . . . . . . . . . . . . . . . . . . . . Successful Hack 225 | . 19 . 35 18 . . . 28 4 14 48 5 20 . 4 16 . . . . 14 Select Force Hacks 90 | . 60 . . . . . . . . . 30 . . . . . . . . . . Disable Machine 795 | . . . 15 15 . . . 30 15 . 15 . 345 . 75 . 105 30 135 15 . Anti-Garrison Action 2600 | . . . . 100 . . . 200 . 100 . 550 . . . 550 . 1050 . . 50 Destroy Structure 1815 | . 20 . 84 72 2 1 . 165 4 49 12 151 206 20 108 249 212 275 164 4 17 Partial Spotted 15 | . . . . . . . . . . . . . . . . . . . . . 15 Lose Combat Pursuer 735 | . . 105 75 . . . . 45 15 90 . . 30 . 75 60 15 90 90 . 45 Influence Decreases 14392 | . 353 326 680 259 744 144 . 120 866 247 1108 102 2148 871 469 289 1830 337 1721 1155 623 Entered New Map 6846 | . . 53 24 199 402 93 . . 456 77 413 42 715 701 69 89 797 227 1321 925 243 Time Decay 4151 | . 353 243 606 . 342 51 . . 310 . 410 . 478 170 380 . 538 . 100 170 . Lost Part 940 | . . 30 40 40 . . . 10 . 30 10 . 40 . 20 160 10 50 120 60 320 Lost Ally 1080 | . . . 10 20 . . . 110 100 140 . 60 190 . . 40 110 60 180 . 60 Purge Threat 1375 | . . . . . . . . . . . 275 . 725 . . . 375 . . . . Squads Dispatched 56 | . 2 . 4 . 4 . 1 . 1 . 6 . 12 . 2 . 7 . 11 6 . Investigation 11 | . 2 . 1 . 1 . . . . . 2 . 2 . 1 . 2 . . . . Extermination 9 | . . . . . 2 . . . 1 . 2 . 1 . 1 . 1 . . 1 . Reinforcement 14 | . . . 3 . 1 . 1 . . . 2 . 5 . . . 2 . . . . Assault 18 | . . . . . . . . . . . . . 3 . . . 2 . 10 3 . Garrison 4 | . . . . . . . . . . . . . 1 . . . . . 1 2 . Intercept . | . . . . . . . . . . . . . . . . . . . . . . Searches Triggered . | . . . . . . . . . . . . . . . . . . . . . . Construction Impeded 4 | . . . . . 1 . . . . . . . 2 . . . 1 . . . . Haulers Reinforced 3 | . . . . . . . . . . . 2 . 1 . . . . . . . . Active Scanning Responses . | . . . . . . . . . . . . . . . . . . . . . . Cargo Convoy Interrupts . | . . . . . . . . . . . . . . . . . . . . . . Alert ID Control Effect 39 | . . . . . . . . . . . . 1 14 . . 3 7 10 4 . . Stealth | -11 -10 -10 -8 -8 -7 -7 -7 -7 -7 -7 -6 -6 -5 -5 -5 -5 -5 -5 -4 -3 -3 --------- Run | Yrd Mat Sub Mat Gar Fac Was Fac Gar Fac Gar Fac Gar Fac Was Fac Gar Fac Gar Fac Res Gar Distress Signals 18 | . 2 . 4 . . . . . . . 3 . 3 . . 1 2 . 3 . . Communications Jammed 12 | . . . . . . . . . . . . . . . . . 12 . . . . Distress Signals 12 | . . . . . . . . . . . . . . . . . 12 . . . . Times Spotted 592 | . 21 16 58 15 1 5 4 30 5 29 20 39 68 6 20 55 49 52 65 5 29 Peak Tracking Total 19 | . 5 3 6 6 1 2 3 6 2 5 4 6 9 3 5 19 5 8 10 2 15 Tactical Retreats 32 | . . 4 2 . . . . 2 1 4 . . 2 . 4 1 1 4 5 . 2 Traps | -11 -10 -10 -8 -8 -7 -7 -7 -7 -7 -7 -6 -6 -5 -5 -5 -5 -5 -5 -4 -3 -3 ------- Run | Yrd Mat Sub Mat Gar Fac Was Fac Gar Fac Gar Fac Gar Fac Was Fac Gar Fac Gar Fac Res Gar Traps Triggered 55 | . 1 1 2 1 2 . . 1 2 8 . 3 1 . . 16 3 11 1 . 2 Indirectly 8 | . . . . . . . . . . 1 . . . . . 7 . . . . . Trap Hack Attempts 22 | . 22 . . . . . . . . . . . . . . . . . . . . Triggered . | . . . . . . . . . . . . . . . . . . . . . . Disarmed . | . . . . . . . . . . . . . . . . . . . . . . Reprogrammed 2 | . 2 . . . . . . . . . . . . . . . . . . . . Reused 1 | . 1 . . . . . . . . . . . . . . . . . . . . Traps Extracted . | . . . . . . . . . . . . . . . . . . . . . . Installed 1 | . . 1 . . . . . . . . . . . . . . . . . . . Triggered 1 | . 1 . . . . . . . . . . . . . . . . . . . . Most Traps Carried 1 | . . 1 . . . . . . . . . . . . . . . . . . . Machines | -11 -10 -10 -8 -8 -7 -7 -7 -7 -7 -7 -6 -6 -5 -5 -5 -5 -5 -5 -4 -3 -3 ---------- Run | Yrd Mat Sub Mat Gar Fac Was Fac Gar Fac Gar Fac Gar Fac Was Fac Gar Fac Gar Fac Res Gar Machines Disabled 85 | . . 3 1 3 . . . 7 1 5 1 5 23 . 5 5 7 8 9 1 1 Max in Single Turn 5 | . . 1 1 1 . . . 1 1 2 1 1 1 . 2 1 5 1 4 1 1 Garrison Access 2 | . . . . . . . . . . . . . 1 . . . . . 1 . . Garrison Relay 20 | . . . . 1 . . . 3 . 2 . 4 . . . 4 . 5 . . 1 Phase Generator 1 | . . . . . . . . 1 . . . . . . . . . . . . . Machines Repaired . | . . . . . . . . . . . . . . . . . . . . . . Machines Dismantled . | . . . . . . . . . . . . . . . . . . . . . . Machines Sabotaged . | . . . . . . . . . . . . . . . . . . . . . . Overloaded Fab Kills . | . . . . . . . . . . . . . . . . . . . . . . Hacking | -11 -10 -10 -8 -8 -7 -7 -7 -7 -7 -7 -6 -6 -5 -5 -5 -5 -5 -5 -4 -3 -3 --------- Run | Yrd Mat Sub Mat Gar Fac Was Fac Gar Fac Gar Fac Gar Fac Was Fac Gar Fac Gar Fac Res Gar Machines Accessed 72 | . 10 2 11 4 . . 1 3 4 3 6 4 5 . 5 2 7 3 . 1 1 Terminals 48 | . 8 . 9 4 . . . 3 . 3 3 4 2 . 3 2 3 3 . . 1 Fabricators 7 | . . . . . . . . . 2 . 1 . 2 . . . 2 . . . . Repair Stations 3 | . . . 1 . . . . . . . 1 . . . . . 1 . . . . Recycling Units 4 | . 2 . . . . . . . 1 . . . . . 1 . . . . . . Scanalyzers . | . . . . . . . . . . . . . . . . . . . . . . Garrison Access 8 | . . . 1 . . . 1 . 1 . 1 . 1 . 1 . 1 . . 1 . Total Hacks 185 | . 30 4 38 7 . . 1 8 10 5 15 8 14 . 12 6 17 6 . 2 2 Successful 86 | . 12 4 23 4 . . 1 3 7 2 9 2 9 . 3 1 4 . . 1 1 Failed 99 | . 18 . 15 3 . . . 5 3 3 6 6 5 . 9 5 13 6 . 1 1 Catastrophic 15 | . 2 . . . . . . 2 1 1 1 1 . . 2 . 2 2 . . 1 Database Lockouts . | . . . . . . . . . . . . . . . . . . . . . . Manual 87 | . 28 . 25 2 . . . 5 4 . 5 . 1 . 7 . 8 . . 1 1 Terminals 125 | . 27 . 32 7 . . . 8 . 5 7 8 6 . 5 6 6 6 . . 2 Fabricators 22 | . . . . . . . . . 6 . 2 . 6 . . . 8 . . . . Repair Stations 10 | . . . 5 . . . . . . . 3 . . . . . 2 . . . . Recycling Units 8 | . 3 . . . . . . . 2 . . . . . 3 . . . . . . Scanalyzers . | . . . . . . . . . . . . . . . . . . . . . . Garrison Access 16 | . . . 1 . . . 1 . 2 . 3 . 2 . 4 . 1 . . 2 . Terminal Hacks 31 | . 3 4 7 3 . . . 3 . 2 2 2 3 . . 1 . . . . 1 Record 3 | . . 3 . . . . . . . . . . . . . . . . . . . Robot Schematic 2 | . 1 . 1 . . . . . . . . . . . . . . . . . . Robot Analysis 3 | . 1 . 2 . . . . . . . . . . . . . . . . . . Prototype ID Bank 2 | . 1 . 1 . . . . . . . . . . . . . . . . . . Open Door 3 | . . . . 1 . . . . . 1 . 1 . . . . . . . . . Branch Access Points 1 | . . . . . . . . . . . 1 . . . . . . . . . . Emergency Access Points 5 | . . . . 1 . . . 1 . . . 1 . . . 1 . . . . 1 Fabricator Index 1 | . . . . . . . . . . . 1 . . . . . . . . . . Unreport Threat 4 | . . . 1 . . . . . . . . . 3 . . . . . . . . Hauler Manifests 1 | . . . 1 . . . . . . . . . . . . . . . . . . Zone Layout 1 | . . . 1 . . . . . . . . . . . . . . . . . . Garrison Registry 2 | . . . . 1 . . . 1 . . . . . . . . . . . . . Security Stations 2 | . . . . . . . . 1 . 1 . . . . . . . . . . . Proto ID Catalog 1 | . . 1 . . . . . . . . . . . . . . . . . . . Fabricator Hacks 9 | . . . . . . . . . 2 . 2 . 3 . . . 2 . . . . Network Status 1 | . . . . . . . . . 1 . . . . . . . . . . . . Load Schematic 5 | . . . . . . . . . . . 1 . 2 . . . 2 . . . . Build 3 | . . . . . . . . . 1 . 1 . 1 . . . . . . . . Repair Station Hacks 4 | . . . 4 . . . . . . . . . . . . . . . . . . Scan Component 2 | . . . 2 . . . . . . . . . . . . . . . . . . Repair 2 | . . . 2 . . . . . . . . . . . . . . . . . . Recycling Unit Hacks . | . . . . . . . . . . . . . . . . . . . . . . Scanalyzer . | . . . . . . . . . . . . . . . . . . . . . . Garrison Access Hacks 11 | . . . 1 . . . 1 . 2 . 1 . 2 . 2 . 1 . . 1 . Unlock Access 7 | . . . 1 . . . 1 . 1 . 1 . . . 1 . 1 . . 1 . Seal Access 1 | . . . . . . . . . . . . . 1 . . . . . . . . Coupler Status 3 | . . . . . . . . . 1 . . . 1 . 1 . . . . . . Unauthorized Hacks 30 | . 8 . 11 1 . . . . 3 . 4 . 1 . 1 . 1 . . . . Terminals 22 | . 6 . 11 1 . . . . . . 2 . 1 . . . 1 . . . . Track 1 | . . . 1 . . . . . . . . . . . . . . . . . . Assimilate 1 | . . . 1 . . . . . . . . . . . . . . . . . . Botnet 4 | . 1 . 2 . . . . . . . 1 . . . . . . . . . . Operators 4 | . . . 1 . . . . . . . 1 . 1 . . . 1 . . . . Skim 11 | . 5 . 6 . . . . . . . . . . . . . . . . . . Override 1 | . . . . 1 . . . . . . . . . . . . . . . . . Fabricators 2 | . . . . . . . . . 2 . . . . . . . . . . . . Liberate 1 | . . . . . . . . . 1 . . . . . . . . . . . . Haulers 1 | . . . . . . . . . 1 . . . . . . . . . . . . Repair Stations 1 | . . . . . . . . . . . 1 . . . . . . . . . . Mechanics 1 | . . . . . . . . . . . 1 . . . . . . . . . . Recycling Units 4 | . 2 . . . . . . . 1 . . . . . 1 . . . . . . Recyclers 2 | . . . . . . . . . 1 . . . . . 1 . . . . . . Tunnel 2 | . 2 . . . . . . . . . . . . . . . . . . . . Scanalyzers . | . . . . . . . . . . . . . . . . . . . . . . Garrison Access 1 | . . . . . . . . . . . 1 . . . . . . . . . . Eject 1 | . . . . . . . . . . . 1 . . . . . . . . . . Data Cores Recovered 2 | . 1 . . . . . . . . . . . . . 1 . . . . . . Used 1 | . 1 . . . . . . . . . . . . . . . . . . . . Hacking Detections 64 | . 8 . 11 4 . . 1 3 2 2 6 4 5 . 5 2 6 3 . 1 1 Full Trace Events 11 | . . . . . . . . . . . 1 1 2 . 1 1 2 3 . . . Feedback Events 1 | . . . . . . . . . . . . . . . . . 1 . . . . Corruption 1 | . . . . . . . . . . . . . . . . . 1 . . . . Feedback Blocked . | . . . . . . . . . . . . . . . . . . . . . . Robot Schematics Acquired 2 | . 1 . 1 . . . . . . . . . . . . . . . . . . Robots Built 2 | . . . . . . . . . . . 1 . 1 . . . . . . . . Authchips . | . . . . . . . . . . . . . . . . . . . . . . Time 174 | . . . . . . . . . . . 116 . 58 . . . . . . . . Total Robot Build Rating 6 | . . . . . . . . . . . 3 . 3 . . . . . . . . Part Schematics Acquired . | . . . . . . . . . . . . . . . . . . . . . . Parts Built 1 | . . . . . . . . . 1 . . . . . . . . . . . . Authchips . | . . . . . . . . . . . . . . . . . . . . . . Time 106 | . . . . . . . . . 106 . . . . . . . . . . . . Total Part Build Rating 6 | . . . . . . . . . 6 . . . . . . . . . . . . Parts Repaired 2 | . . . 2 . . . . . . . . . . . . . . . . . . Time 76 | . . . 76 . . . . . . . . . . . . . . . . . . Parts Recycled . | . . . . . . . . . . . . . . . . . . . . . . Recycled Matter . | . . . . . . . . . . . . . . . . . . . . . . Retrieved Matter . | . . . . . . . . . . . . . . . . . . . . . . Retrieved Components . | . . . . . . . . . . . . . . . . . . . . . . Parts Scanalyzed . | . . . . . . . . . . . . . . . . . . . . . . Part Schematics Acquired . | . . . . . . . . . . . . . . . . . . . . . . Parts Damaged . | . . . . . . . . . . . . . . . . . . . . . . Bothacking | -11 -10 -10 -8 -8 -7 -7 -7 -7 -7 -7 -6 -6 -5 -5 -5 -5 -5 -5 -4 -3 -3 ------------ Run | Yrd Mat Sub Mat Gar Fac Was Fac Gar Fac Gar Fac Gar Fac Was Fac Gar Fac Gar Fac Res Gar Used RIF Installer 7 | . . . . 1 . . . 1 . 2 . 1 . . . 1 . . . . 1 Coupler Efficiency 1 | . . . . . . . . . . . . . . . . . . . . . 1 Command Fork 1 | . . . . . . . . . . 1 . . . . . . . . . . . Signal Jammer 1 | . . . . . . . . . . . . . . . . 1 . . . . . Watcher Feeds 1 | . . . . . . . . . . 1 . . . . . . . . . . . Patrol Navigation 1 | . . . . . . . . 1 . . . . . . . . . . . . . Alert ID Control 1 | . . . . . . . . . . . . 1 . . . . . . . . . Robots Hacked 92 | . . . . . . 6 3 5 . 4 6 8 13 6 1 5 10 4 17 . 4 Non-combat 13 | . . . . . . . 1 . . . 1 . 6 . . . 2 . 3 . . Combat 79 | . . . . . . 6 2 5 . 4 5 8 7 6 1 5 8 4 14 . 4 Robot Hacks Applied 107 | . . . . . . 6 3 5 . 4 10 8 15 6 1 5 16 4 20 . 4 parse_system 6 | . . . . . . . . . . . . 1 1 . . 1 . . 3 . . find_chute 2 | . . . . . . . . . . . . . 1 . . . . . 1 . . find_fabricator 1 | . . . . . . . . . . . . . . . . . 1 . . . . find_dsf 1 | . . . . . . . . . . . . . . . . . 1 . . . . drop_inventory 3 | . . . . . . . . . . . . . 3 . . . . . . . . purge_threat 7 | . . . . . . . . . . . 2 . 2 . . . 3 . . . . block_reporting 1 | . . . . . . . . . . . 1 . . . . . . . . . . recall_investigation 1 | . . . . . . . . . . . . . . . . . 1 . . . . ignore_targets 12 | . . . . . . 6 . . . . . . . 6 . . . . . . . find_garrison 2 | . . . . . . . . . . . . . . . . . 1 . 1 . . overload_power 2 | . . . . . . . . . . . . . . . . . 1 1 . . . amplify_resonance 18 | . . . . . . . . 1 . . 2 1 4 . 1 1 3 . 5 . . overwrite_iff 17 | . . . . . . . 1 1 . . 3 1 2 . . 2 1 . 6 . . formatsys_low 5 | . . . . . . . 1 . . . 1 . . . . . 1 . 2 . . formatsys_high 29 | . . . . . . . 1 3 . 4 1 5 2 . . 1 3 3 2 . 4 Relay Couplers Released 90 | . . . . 5 . . . 14 . 8 4 16 1 . . 17 . 20 . . 5 Ejected 4 | . . . . . . . . . . . 4 . . . . . . . . . . Machine Destruction 86 | . . . . 5 . . . 14 . 8 . 16 1 . . 17 . 20 . . 5 Attached 51 | . . . . . . 1 2 2 . 3 2 7 5 1 1 6 5 4 5 1 6 Fabnet Peak Effective % . | . . . . . . . . . . . . . . . . . . . . . . Robots Rewired 15 | . . . . . . . . 7 . 2 . 2 . . . 2 . 2 . . . Allies Hacked 3 | . . . . . . . . . . 1 . . 1 . . . . . 1 . . Hacks Repelled . | . . . . . . . . . . . . . . . . . . . . . . Allies | -11 -10 -10 -8 -8 -7 -7 -7 -7 -7 -7 -6 -6 -5 -5 -5 -5 -5 -5 -4 -3 -3 -------- Run | Yrd Mat Sub Mat Gar Fac Was Fac Gar Fac Gar Fac Gar Fac Was Fac Gar Fac Gar Fac Res Gar Total Allies 88 | . . . 1 1 . . 3 11 3 6 8 12 6 . . 7 6 6 14 . 4 Largest Group 11 | . . . 1 1 . . 2 6 7 4 4 10 11 . . 3 3 3 4 . 3 Highest-Rated Group 436 | . . . 10 20 . . 42 146 138 142 90 436 378 . . 222 116 282 213 . 116 Highest-Rated Ally 148 | . . . 10 20 . . 26 32 30 39 29 116 85 . . 116 116 148 85 . 116 Total Orders 34 | . . . 2 . . . . 2 . . 1 15 2 . . 2 . 9 1 . . STAY 10 | . . . 1 . . . . 1 . . . 4 . . . 1 . 3 . . . ROAM 4 | . . . . . . . . . . . . 2 . . . . . 2 . . . FOLLOW 14 | . . . 1 . . . . 1 . . . 7 . . . 1 . 4 . . . AID 6 | . . . . . . . . . . . 1 2 2 . . . . . 1 . . Ally Attacks 589 | . . . . 1 . . 5 37 28 52 11 79 138 . . 51 56 67 54 . 10 Total Damage 16814 | . . . . 46 . . 79 1200 419 872 190 1512 4308 . . 2843 1383 1817 1918 . 227 Kills 124 | . . . . 1 . . . 8 4 9 1 7 38 . . 13 12 17 14 . . Allies Corrupted 2 | . . . . . . . . 2 . . . . . . . . . . . . . Allies Melted 3 | . . . . 1 . . . . . . . . 1 . . 1 . . . . . Intel | -11 -10 -10 -8 -8 -7 -7 -7 -7 -7 -7 -6 -6 -5 -5 -5 -5 -5 -5 -4 -3 -3 ------- Run | Yrd Mat Sub Mat Gar Fac Was Fac Gar Fac Gar Fac Gar Fac Was Fac Gar Fac Gar Fac Res Gar Active Infowar (turns) 197 | . . . . . . . . . . . . . . . . . . . . 197 . Sensors 197 | . . . . . . . . . . . . . . . . . . . . 197 . Robot Analysis Total 3 | . 1 . 2 . . . . . . . . . . . . . . . . . . Derelict Logs Recovered 1 | . . 1 . . . . . . . . . . . . . . . . . . . Drone Launches . | . . . . . . . . . . . . . . . . . . . . . . Drone Recoveries . | . . . . . . . . . . . . . . . . . . . . . . Exploration | -11 -10 -10 -8 -8 -7 -7 -7 -7 -7 -7 -6 -6 -5 -5 -5 -5 -5 -5 -4 -3 -3 ------------- Run | Yrd Mat Sub Mat Gar Fac Was Fac Gar Fac Gar Fac Gar Fac Was Fac Gar Fac Gar Fac Res Gar Turns Passed 25635 | 71 1651 2700 2928 711 771 298 54 974 698 1140 997 2175 1238 355 896 2220 1529 2815 550 343 521 Spaces Moved 10797 | 39 659 1014 1588 308 450 95 21 464 372 531 484 961 496 104 334 784 528 908 240 162 255 Core 32 | 2 . . . . . . . . . . . . . . . . . . 14 . 16 Treads 5469 | 37 659 966 . . . . . . . . . 217 496 104 334 784 528 908 226 162 48 Legs 114 | . . . . . . . . . . . . . . . . . . . . . 114 Wheels 5105 | . . 48 1588 308 450 95 21 464 372 531 484 744 . . . . . . . . . Hover 69 | . . . . . . . . . . . . . . . . . . . . . 69 Flight 8 | . . . . . . . . . . . . . . . . . . . . . 8 Fastest Speed 50 | 50 160 100 115 160 160 160 145 145 175 160 160 158 158 158 238 155 240 232 50 160 50 Average Speed 189 | 154 223 232 140 160 160 160 157 158 175 165 161 163 187 178 238 233 240 246 172 174 127 Slowest Speed 900 | 160 240 240 160 160 160 160 160 160 175 175 175 240 238 238 238 320 240 250 250 320 900 Overloaded Moves . | . . . . . . . . . . . . . . . . . . . . . . Propulsion Burnouts . | . . . . . . . . . . . . . . . . . . . . . . Robots Hopped . | . . . . . . . . . . . . . . . . . . . . . . Potential Cave-ins . | . . . . . . . . . . . . . . . . . . . . . . Cave-ins Triggered . | . . . . . . . . . . . . . . . . . . . . . . Exploration Rate (%) 45 | 3 94 57 98 44 15 84 1 59 11 66 16 92 22 71 11 90 19 92 11 3 34 Regions Visited 21 Branch Regions 1 Pre-discovered Areas 3 | . 2 1 . . . . . . . . . . . . . . . . . . . Known Exits Taken 9 | . 1 1 1 . . . 1 . 1 . 1 . . . 1 . 1 . . 1 . Unknown Exits Taken 2 | 1 . . . . . . . . . . . . . . . . . . 1 . . Scrap Searched . | . . . . . . . . . . . . . . . . . . . . . . Spaces Dug 33 | . . 3 3 . . . . . . 3 . 6 2 . 3 . 4 8 . . 1 Terrain Destroyed 726 | . 15 28 92 32 2 1 . 64 4 20 12 19 30 10 56 169 67 42 50 2 11 Melee . | . . . . . . . . . . . . . . . . . . . . . . Projectile 271 | . 3 3 42 . 2 1 . 3 4 20 12 12 30 10 22 8 40 42 4 2 11 AOE 455 | . 12 25 50 32 . . . 61 . . . 7 . . 34 161 27 . 46 . . Terrain Rammed 1 | . . . . . . . . . . . . . . . . . . . . . 1 Walls Destroyed . | . . . . . . . . . . . . . . . . . . . . . . Machines Disabled 1 | . . . . . . . . . . . . . . . . . . . . . 1 Actions | -11 -10 -10 -8 -8 -7 -7 -7 -7 -7 -7 -6 -6 -5 -5 -5 -5 -5 -5 -4 -3 -3 --------- Run | Yrd Mat Sub Mat Gar Fac Was Fac Gar Fac Gar Fac Gar Fac Was Fac Gar Fac Gar Fac Res Gar Total 14233 | 46 766 1220 2015 454 482 158 36 636 418 707 626 1413 697 198 391 1083 692 1289 334 203 369 Wait 1113 | . 21 93 188 56 7 . 2 25 27 27 53 208 72 10 5 90 39 158 12 10 10 Move 10784 | 38 658 1013 1588 307 450 94 21 463 372 530 483 960 496 103 334 783 528 907 240 161 255 Hop . | . . . . . . . . . . . . . . . . . . . . . . Pick Up 218 | 1 12 6 34 14 3 2 . 12 6 10 8 29 2 4 2 29 8 24 2 3 7 Fast Attach 115 | 6 3 3 14 1 3 2 . 3 1 4 2 4 1 4 . 17 4 8 7 9 19 Attach 118 | . . 11 11 4 2 . . 3 . 6 9 10 7 3 3 16 4 8 10 4 7 Detach 48 | . 2 2 7 . . . . 2 . 2 4 4 1 4 1 14 . 3 . . 2 Swap 155 | . 8 1 16 13 2 5 6 10 1 4 4 16 10 4 6 8 10 18 13 . . Drop 162 | . 4 3 26 10 5 3 . 14 7 8 4 29 . 2 2 17 5 17 1 . 5 Fire 1251 | . 34 79 118 36 8 52 6 51 4 64 57 129 102 64 37 79 92 124 44 16 55 Melee 21 | . . 8 8 5 . . . . . . . . . . . . . . . . . Ram 8 | . . . 1 . 1 . . 1 . . . . . . . 1 . . . . 4 Kick . | . . . . . . . . . . . . . . . . . . . . . . Crush 41 | 1 2 . 4 . 1 . . . . . . . 6 . 1 17 2 1 5 . 1 Escape Stasis 103 | . . . . 8 . . . 8 . 40 . 13 . . . 12 . 20 . . 2 Rewire 73 | . . . . . . . 1 44 . 12 2 11 . . . . . 1 . . 2 Trap 23 | . 22 1 . . . . . . . . . . . . . . . . . . . Miscellaneous . | . . . . . . . . . . . . . . . . . . . . . . Route ------- -11/Scrapyard -10/Materials (discovered 5 exits: [*Mat x3] / [*Min] / *Sub) -10/Subcaves (discovered 3 exits: *Mat x2 / *Rec) -8/Materials (discovered 4 exits: *Fac x3 / Gar) -8/Garrison (discovered 3 exits: *Fac x3) -7/Factory -7/Waste -7/Factory -7/Garrison (discovered 3 exits: *Fac x3) -7/Factory -7/Garrison (discovered 3 exits: *Fac x3) -6/Factory (discovered 4 exits: *Fac / Low x2 / Gar) -6/Garrison (discovered 3 exits: *Fac x3) -5/Factory (discovered 3 exits: [*Fac] / [*Upp] / Ext) -5/Waste -5/Factory (discovered 2 exits: [*Upp] / Gar) -5/Garrison (discovered 2 exits: *Fac x2) -5/Factory (discovered 3 exits: [*Fac] / [*Upp] / Gar) -5/Garrison (discovered 3 exits: [*Fac x3]) -4/Factory -3/Research -3/Garrison History --------- Turn | Location | Event 21 | -11/Scrapyard | Discovered new exit (range 16) 72 | -11/Scrapyard | Entered Materials 306 | -10/Materials | Build established: Mutant 647 | -10/Materials | Discovered new exit (range 8) 825 | -10/Materials | Discovered new exit (range 11) 886 | -10/Materials | Learned Storage security intel 943 | -10/Materials | Identified exit to Subcaves 1024 | -10/Materials | Learned Storage stockpile data 1048 | -10/Materials | Learned location of 2 exits from Subcaves 1082 | -10/Materials | Learned 4 Subcaves zone layouts 1120 | -10/Materials | Discovered new exit (range 12) 1128 | -10/Materials | Learned 2 Mines zone layouts 1391 | -10/Materials | Discovered new exit (range 16) 1723 | -10/Materials | Entered Subcaves 1724 | -10/Subcaves | Identified exit to Materials 1724 | -10/Subcaves | Identified exit to Recycling 2015 | -10/Subcaves | Visited 4L-MR0's lab 2036 | -10/Subcaves | Found Meta Core 2147 | -10/Subcaves | Visited Clippyterm 3327 | -10/Subcaves | Shifting Twisted Machinery released Sub. Machine Gun 3328 | -10/Subcaves | Shifting Twisted Machinery released Flamer 4218 | -10/Subcaves | Shifting Twisted Machinery released Shrapnel Trap 4302 | -10/Subcaves | Core integrity fell below 50% 4331 | -10/Subcaves | Core integrity fell below 20% 4363 | -10/Subcaves | Lost 7 parts (1p2n1u3w) 4423 | -10/Subcaves | Entered Materials 4423 | -8/Materials | Evolved 4 slots: Propulsion x1, Utility x3 5155 | -8/Materials | Discovered new exit (range 16) 5258 | -8/Materials | Learned 4 Factory zone layouts 5312 | -8/Materials | Learned Factory stockpile data 5386 | -8/Materials | Learned location of 2 exits from Lower Caves 5439 | -8/Materials | Learned 4 Factory zone layouts 5468 | -8/Materials | Learned Factory emergency access door positions 5505 | -8/Materials | Learned 4 Factory zone layouts 5743 | -8/Materials | Discovered new exit (range 16) 6166 | -8/Materials | Repaired Lgt. Deuterium Engine 7005 | -8/Materials | Repaired Lgt. Deuterium Engine 7320 | -8/Materials | Discovered new exit (range 6) 7351 | -8/Materials | Identified exit to Garrison 7351 | -8/Materials | Entered Garrison 7399 | -8/Garrison | Triggered checkpoint 7457 | -8/Garrison | Rescued a captive Derelict 7459 | -8/Garrison | Garrison Relay disabled 7611 | -8/Garrison | Installed Relay Interface Framework 7657 | -8/Garrison | Triggered checkpoint 7676 | -8/Garrison | Triggered checkpoint 7883 | -8/Garrison | Lost 3 parts (1p2u) 7995 | -8/Garrison | Discovered new exit (range 13) 8027 | -8/Garrison | Discovered new exit (range 15) 8027 | -8/Garrison | Discovered new exit (range 66) 8027 | -8/Garrison | Discovered new exit (range 34) 8027 | -8/Garrison | Identified exit to Factory 8062 | -8/Garrison | Entered Factory 8062 | -7/Factory | Evolved 2 slots: Propulsion x1, Utility x1 8063 | -7/Factory | Identified exit to Lower Caves 8201 | -7/Factory | Build established: Bothacker-Mutant 8833 | -7/Factory | Sucked down chute 8833 | -7/Factory | Entered Waste 8848 | -7/Waste | EMP discharged 8901 | -7/Waste | Spotted C-40 Crusher 8905 | -7/Waste | Spotted C-40 Crusher 8907 | -7/Waste | Spotted C-40 Crusher 8924 | -7/Waste | Spotted C-40 Crusher 8942 | -7/Waste | Spotted C-40 Crusher 8942 | -7/Waste | Spotted C-40 Crusher 8948 | -7/Waste | EMP discharged 8948 | -7/Waste | System corruption reached 10% 9048 | -7/Waste | EMP discharged 9048 | -7/Waste | Destroyed C-40 Crusher 9088 | -7/Waste | Destroyed C-40 Crusher 9112 | -7/Waste | Discovered new exit (range 11) 9131 | -7/Waste | Entered Factory 9180 | -7/Factory | Identified exit to Garrison 9185 | -7/Factory | Entered Garrison 9185 | -7/Garrison | Accompanied by 1 ally 9220 | -7/Garrison | Triggered checkpoint 9244 | -7/Garrison | Triggered checkpoint 9247 | -7/Garrison | Triggered checkpoint 9333 | -7/Garrison | Garrison Relay disabled 9412 | -7/Garrison | Learned Factory security intel 9412 | -7/Garrison | Discovered new exit (range 102) 9412 | -7/Garrison | Discovered new exit (range 63) 9412 | -7/Garrison | Discovered new exit (range 56) 9527 | -7/Garrison | Triggered checkpoint 9535 | -7/Garrison | Triggered checkpoint 9683 | -7/Garrison | Triggered checkpoint 9700 | -7/Garrison | Garrison Relay disabled 9734 | -7/Garrison | Expanded RIF knowledge: Patrol Navigation 9777 | -7/Garrison | Phase Generator disabled 9808 | -7/Garrison | Lost 3 allies 9941 | -7/Garrison | Triggered checkpoint 9998 | -7/Garrison | Garrison Relay disabled 10159 | -7/Garrison | Entered Factory 10159 | -7/Factory | Accompanied by 4 allies 10368 | -7/Factory | Fabricated Adv. Hacking Suite? 10830 | -7/Factory | Identified exit to Garrison 10837 | -7/Factory | Lost 4 allies 10857 | -7/Factory | Entered Garrison 10857 | -7/Garrison | Accompanied by 2 allies 11003 | -7/Garrison | P-70 Sage assimilated allied Guardian 4c 11034 | -7/Garrison | Expanded RIF knowledge: Watcher Feeds 11168 | -7/Garrison | Lost 3 allies 11199 | -7/Garrison | Triggered checkpoint 11221 | -7/Garrison | Destroyed 7 combat bots 11259 | -7/Garrison | Triggered checkpoint 11308 | -7/Garrison | Expanded RIF knowledge: Command Fork 11343 | -7/Garrison | Garrison Relay disabled 11367 | -7/Garrison | Triggered checkpoint 11370 | -7/Garrison | Learned Factory security intel 11435 | -7/Garrison | Discovered new exit (range 12) 11632 | -7/Garrison | Discovered new exit (range 10) 11655 | -7/Garrison | Build established: Botlord-Mutant 11812 | -7/Garrison | Discovered new exit (range 10) 11847 | -7/Garrison | Triggered checkpoint 11904 | -7/Garrison | Garrison Relay disabled 11997 | -7/Garrison | Entered Factory 11997 | -6/Factory | Evolved 2 slots: Power x1, Weapon x1 12262 | -6/Factory | Identified exit to Lower Caves 12318 | -6/Factory | Build established: Botlord-Gunner 12488 | -6/Factory | P-60 Hacker assimilated allied Serf 5a 12596 | -6/Factory | Fabricated M-28 Smith (x1) 12917 | -6/Factory | Discovered new exit (range 10) 12986 | -6/Factory | Identified exit to Garrison 12994 | -6/Factory | Entered Garrison 12994 | -6/Garrison | Accompanied by 3 allies 13074 | -6/Garrison | Rescued a captive Derelict 13079 | -6/Garrison | Rescued a captive Derelict 13179 | -6/Garrison | Garrison Relay disabled 13208 | -6/Garrison | Spotted Executioner 13231 | -6/Garrison | Allies destroyed Executioner 13238 | -6/Garrison | Found Exp. Core Analyzer 13243 | -6/Garrison | Found Adv. Kinecellerator 13292 | -6/Garrison | Spotted B-75 Beast 13292 | -6/Garrison | Spotted B-75 Beast 13311 | -6/Garrison | Destroyed B-75 Beast 13342 | -6/Garrison | Destroyed B-75 Beast 13587 | -6/Garrison | Build established: Botlord-Tank 13600 | -6/Garrison | Triggered checkpoint 13752 | -6/Garrison | Triggered checkpoint 13761 | -6/Garrison | Triggered checkpoint 13796 | -6/Garrison | Triggered checkpoint 13804 | -6/Garrison | Triggered checkpoint 13864 | -6/Garrison | Triggered checkpoint 13922 | -6/Garrison | Garrison Relay disabled 14012 | -6/Garrison | Discovered new exit (range 8) 14068 | -6/Garrison | Build established: Bothacker-Tank 14160 | -6/Garrison | Garrison Relay disabled 14211 | -6/Garrison | Found Gamma Bomb Array 14294 | -6/Garrison | Expanded RIF knowledge: Alert ID Control 14307 | -6/Garrison | Discovered new exit (range 10) 14336 | -6/Garrison | Spotted B-86 Titan 14363 | -6/Garrison | Allies destroyed B-86 Titan 14376 | -6/Garrison | Spotted B-90 Cyclops 14388 | -6/Garrison | Allies destroyed B-90 Cyclops 14420 | -6/Garrison | Rewired B-86 Titan 14430 | -6/Garrison | Rewired B-75 Beast 14480 | -6/Garrison | Build established: Botlord-Tank 14594 | -6/Garrison | Triggered checkpoint 14704 | -6/Garrison | Attached Meta Core, gained temporary slots: Propulsion, Utility, Weapon 14769 | -6/Garrison | Garrison Relay disabled 14868 | -6/Garrison | Discovered new exit (range 12) 15169 | -6/Garrison | Entered Factory 15169 | -5/Factory | Accompanied by 9 allies 15169 | -5/Factory | Evolved 2 slots: Power x1, Utility x1 15170 | -5/Factory | Identified exit to Extension 15424 | -5/Factory | Garrison activated, responded to threat 15469 | -5/Factory | First assault squad dispatched 15565 | -5/Factory | Discovered new exit (range 33) 15715 | -5/Factory | Fabricated M-28 Smith (x1) 15788 | -5/Factory | Lost 4 allies 15841 | -5/Factory | Lost 3 allies 15854 | -5/Factory | Destroyed 7 combat bots 15932 | -5/Factory | Build established: Bothacker-Tank 15960 | -5/Factory | P-70 Sage assimilated allied Smith 6a 16371 | -5/Factory | Discovered new exit (range 5) 16407 | -5/Factory | Sucked down chute 16407 | -5/Factory | Entered Waste 16422 | -5/Waste | EMP discharged 16422 | -5/Waste | System corruption reached 10% 16423 | -5/Waste | Spotted C-40 Crusher 16436 | -5/Waste | Spotted C-40 Crusher 16442 | -5/Waste | Spotted C-40 Crusher 16445 | -5/Waste | Spotted C-40 Crusher 16503 | -5/Waste | Spotted C-40 Crusher 16521 | -5/Waste | Destroyed C-40 Crusher 16522 | -5/Waste | EMP discharged 16523 | -5/Waste | Spotted C-40 Crusher 16622 | -5/Waste | EMP discharged 16622 | -5/Waste | System corruption reached 30% 16693 | -5/Waste | Destroyed C-40 Crusher 16701 | -5/Waste | Found Damper Plating 16722 | -5/Waste | EMP discharged 16726 | -5/Waste | Discovered new exit (range 11) 16762 | -5/Waste | Entered Factory 16898 | -5/Factory | Build established: Tank 17385 | -5/Factory | Discovered new exit (range 9) 17658 | -5/Factory | Identified exit to Garrison 17658 | -5/Factory | Entered Garrison 17820 | -5/Garrison | Triggered checkpoint 17853 | -5/Garrison | Garrison Relay disabled 17983 | -5/Garrison | Spotted B-75 Beast 17988 | -5/Garrison | Triggered checkpoint 17989 | -5/Garrison | Assimilated Beast 6a with formatsys_high 18042 | -5/Garrison | Triggered checkpoint 18168 | -5/Garrison | Build established: Bothacker-Tank 18168 | -5/Garrison | Triggered checkpoint 18168 | -5/Garrison | Triggered checkpoint 18205 | -5/Garrison | Core integrity fell below 50% 18212 | -5/Garrison | Found Prototype Launcher 18212 | -5/Garrison | Identified Tactical Quantum Warhead 18239 | -5/Garrison | Triggered checkpoint 18243 | -5/Garrison | Lost 10 parts (2p3n2u3w) 18270 | -5/Garrison | Destroyed 11 combat bots 18320 | -5/Garrison | Lost 4 parts (1p2n1w) 18350 | -5/Garrison | Found Prototype Protection 18350 | -5/Garrison | Identified Active Cooling Armor 18397 | -5/Garrison | Found Prototype Device 18397 | -5/Garrison | Identified Exp. Shield Generator 18405 | -5/Garrison | Found Prototype Launcher 18412 | -5/Garrison | Found Prototype Launcher 18469 | -5/Garrison | Found Prototype Launcher 18470 | -5/Garrison | Identified Enh. Gamma Bomb Array (x3) 18714 | -5/Garrison | Triggered checkpoint 18722 | -5/Garrison | Garrison Relay disabled 18847 | -5/Garrison | Discovered new exit (range 12) 18855 | -5/Garrison | Spotted B-90 Cyclops 18855 | -5/Garrison | Spotted B-75 Beast 18863 | -5/Garrison | Rewired B-86 Titan 18864 | -5/Garrison | Rewired B-75 Beast 18871 | -5/Garrison | Destroyed B-90 Cyclops 18871 | -5/Garrison | Destroyed B-75 Beast 19033 | -5/Garrison | Build established: Botlord-Tank 19065 | -5/Garrison | Found Exp. Shield Generator 19200 | -5/Garrison | Expanded RIF knowledge: Signal Jamming 19350 | -5/Garrison | Triggered checkpoint 19378 | -5/Garrison | Garrison Relay disabled 19680 | -5/Garrison | Discovered new exit (range 14) 19718 | -5/Garrison | Triggered checkpoint 19734 | -5/Garrison | Garrison Relay disabled 19878 | -5/Garrison | Entered Factory 19878 | -5/Factory | Accompanied by 1 ally 20047 | -5/Factory | Spotted B-75 Beast 20151 | -5/Factory | Discovered new exit (range 15) 21078 | -5/Factory | First assault squad dispatched 21215 | -5/Factory | Discovered new exit (range 15) 21376 | -5/Factory | Build established: Bothacker-Tank 21407 | -5/Factory | Identified exit to Garrison 21407 | -5/Factory | Entered Garrison 21462 | -5/Garrison | Triggered checkpoint 21514 | -5/Garrison | Lost 3 parts (2p1n) 21714 | -5/Garrison | Core integrity fell below 20% 21786 | -5/Garrison | Triggered checkpoint 21817 | -5/Garrison | Triggered checkpoint 21857 | -5/Garrison | Triggered checkpoint 21877 | -5/Garrison | Triggered checkpoint 22105 | -5/Garrison | Garrison Relay disabled 22150 | -5/Garrison | Discovered new exit (range 9) 22183 | -5/Garrison | Spotted B-90 Cyclops 22196 | -5/Garrison | Spotted B-90 Cyclops 22206 | -5/Garrison | Destroyed B-90 Cyclops 22211 | -5/Garrison | Destroyed B-90 Cyclops 22293 | -5/Garrison | Rewired B-90 Cyclops 22305 | -5/Garrison | Rewired B-75 Beast 22419 | -5/Garrison | Build established: Botlord-Tank 22551 | -5/Garrison | Triggered checkpoint 22601 | -5/Garrison | Garrison Relay disabled 23019 | -5/Garrison | Found Relay Coupler [Proto] 23028 | -5/Garrison | Found Relay Coupler [Proto] 23037 | -5/Garrison | Found Relay Coupler [Proto] 23089 | -5/Garrison | Discovered new exit (range 12) 23103 | -5/Garrison | Triggered checkpoint 23147 | -5/Garrison | Triggered checkpoint 23172 | -5/Garrison | Garrison Relay disabled 23217 | -5/Garrison | Rescued a captive Derelict 23833 | -5/Garrison | Discovered new exit (range 10) 23921 | -5/Garrison | Garrison Relay disabled 24222 | -5/Garrison | Entered Factory 24222 | -4/Factory | Accompanied by 2 allies 24222 | -4/Factory | Evolved 2 slots: Propulsion x2 24376 | -4/Factory | Garrison activated, responded to threat 24440 | -4/Factory | High security lockdown imminent 24520 | -4/Factory | High security lockdown engaged 24559 | -4/Factory | Lost 3 allies 24649 | -4/Factory | Lost 3 parts (1n1u1w) 24710 | -4/Factory | Lost 3 parts (1p1n1w) 24733 | -4/Factory | Discovered new exit (range 16) 24755 | -4/Factory | Released all parts (9) 24772 | -4/Factory | Entered Research 24772 | -3/Research | Evolved 2 slots: Utility x1, Weapon x1 24785 | -3/Research | Lost 6 parts (2n4u) 24907 | -3/Research | Identified exit to Garrison 24987 | -3/Research | Garrison activated, responded to threat 25022 | -3/Research | First assault squad dispatched 25052 | -3/Research | Lost 3 parts (1n1u1w) 25115 | -3/Research | Entered Garrison 25145 | -3/Garrison | Lost 3 parts (1p1n1u) 25210 | -3/Garrison | Expanded RIF knowledge: Coupler Efficiency 25258 | -3/Garrison | System corruption reached 10% 25323 | -3/Garrison | Lost 8 parts (1p2n3u2w) 25347 | -3/Garrison | Triggered checkpoint 25371 | -3/Garrison | Garrison Relay disabled 25404 | -3/Garrison | Lost 7 parts (1p3n1u2w) 25575 | -3/Garrison | Triggered checkpoint 25598 | -3/Garrison | Spotted B-86 Titan 25600 | -3/Garrison | Assimilated Titan 8a with formatsys_high 25612 | -3/Garrison | Core integrity fell below 50% 25615 | -3/Garrison | System corruption reached 30% 25632 | -3/Garrison | Core integrity fell below 20% 25636 | -3/Garrison | Destroyed by G-67 Veteran with Field Laser Last Messages --------------- 25617_ Myomer Leg destroyed. 25620_ Penetrated by Slug. 25620_ Relay Coupler [Heavy] destroyed. 25620_ Enh. Nova Cannon destroyed. 25622_ System corrupted: Enh. Nova Cannon failed to cycle. 25624_ Adv. Targeting Computer destroyed. 25624_ Relay Coupler [Behemoth] destroyed. 25626_ Acquired 40 matter. 25628_ /QGIIDGRA8R0SYMAY=W%O18QU /A 25628_ Slammed into H-77 Assassin. 25630_ Penetrated by Slug. 25630_ Slug penetrates Earth. 25630_ Enh. Nova Cannon destroyed. 25630_ Relay Coupler [Grunt] destroyed. 25631_ Acquired 6 matter. 25632_ Slug penetrates Wall. 25633_ Slug penetrates Reinforced Barrier. 25634_ Penetrated by Slug. 25634_ Slug penetrates Wall. 25635_ Relay Coupler [Swarmer] destroyed. Map ----- +----------------------------------------------------+ | # #?????????# #?# #????????#?????????????????????? | | # #?????????# ### ###### #?????????????????????? | | # #?????????# " #?????????????????????? | | # #?????????# ########## #?????????????????????? | | # #?###+###?# #????????? #?????????????????????? | | #?#!! !!#?# #????????? #?????????????????????? | | # #?#!! !#?# #????????? #??####???????????????? | | # #?# ! ### #????????? #? #? ?????????????? | | # ?+ + #????????? ## #" ?????????????? | | ##### ### ########## ????????????? | | ????#[[ [ #?# == + ????????????? | | ????#[[ ]#?#######%#### ? ?????????????? | | ????###+###???????#[##?# s #? "#? ???????????? | | ?????????????###### "###= ## ## ???????????? | | ???????????# "*"/%[%*h ] "??????????? | | ?????????????#### ####!=!=sg!% ??????????? | | ?????????????????????#=p h g ??????????? | | ?????????????????????+ ??????????? | | ?????????????????????###p ## ## #??????????? | | ???????????????????????# ## ## ##?????????? | | ???????????????????????# ?????????? | | ?????????+?????????????+ s ?????????? | | ???????????????????????# #??+???????? | | ???????????????????????## ## ## ##??????????? | | ????????????????????????# #? #???????????????? | | ????????????????????????#@ #??####??????????+????? | | ????????????????????????# #?????????????????????? | | ?????????????+??????????+ #?????????+???????????? | | ????????????????????????# #?????????????????????? | | ????????????????????????# #?????????????????????? | | ????????????????????????# #?????????????+???????? | | ????????/???????????????# #?????????????????????? | | ???????????????????+????# #?????????????????????? | | ???????????????????????? #?????????????????????? | | ????????????+??????????? #?????????????????????? | | ???????????????????+????####?????????????????????? | | ?????????????????????????????????????????????????? | | ?????????????????????????????????????????????????? | | ?????????????????????????????????????????????????? | | ????????????????+????????????????????????????????? | | ?????????????????????????????????????????????????? | | ????????????????????????????????????????????+????? | | ?????????????????????????????????????????????????? | | ?????????????????????????????????????????????????? | | ?????????????????????????????????????????????????? | | ?????????????????????????????????????????????????? | | ?????????????????????????????????????????????????? | | ?????????????????????????????????????????????????? | | ?????????????????????????????????????????????????? | | ?????????????????????????????????????????????????? | +----------------------------------------------------+ Best States ------------- Heat Dissipation 131 Coolant Potential 100 Energy Generation 65 Energy Capacity 420 Matter Stores 458 Matter Capacity 500 Sight Range 16 Robot Scan Range 16 Terrain Scan Density 10 Armor Coverage 1800 Resistance: KI 20 Resistance: EM 90 Weapon Cycling 25 Evasion (%) 53 Targeting Accuracy 8 Core Analysis 8 Recoil Reduction 6 Kinecelleration 50 Offensive Hacking 14 Relay Coupler Types 6 Relay Coupler Value 136 Authchip Count 1 Item Schematics ----------------- None Robot Schematics ------------------ M-13 Machinist | -10/Materials | Hacked M-28 Smith | -8/Materials | Hacked Fabricated ------------ Adv. Hacking Suite | x1 | -7/Factory | Preloaded M-28 Smith | x1 | -6/Factory M-28 Smith | x1 | -5/Factory Repaired ---------- Lgt. Deuterium Engine | 32% | -8/Materials Lgt. Deuterium Engine | 8% | -8/Materials Alien Tech Used ----------------- None Achievements -------------- None Challenges ------------ None Game ------ Seed EtherialTowerNanovents Manual? 0 Play Time 03:02:44 Cumulative 731.1 hours Start 2025.07.16 @ 08:13:18 End 2025.09.04 @ 07:31:04 Sessions 13 Manual Loads 0 Difficulty Rogue Special Mode None Game No. 379 Rogue 379 Adventurer 0 Explorer 0 Win Type - Total 58 Types 39/4/5/2/1/1/3/1/1/1 Lore% 92 Gallery% 85 Achievement% 91 Wizard Run 0 Options --------- Layout 0 ASCII 0 Keyboard 1 Movement Numpad Keybinds 0 Fullscreen 2 Font 18/SmallcapsGlow Map View 76x50 Zoom Use 0% Tactical HUD 1 Map Filters NONE Filters NONE Steam 1 RUN: 0f4849f3-5cc6-4bf4-be67-87dad62592cb